fUSD/lending_fUSD_20251028
["ID","MTS","AMOUNT","RATE_DAILY","PERIOD"]
[392569895,1761681036043,-151.0,0.00029673,31]
[392569897,1761681036052,-153.147068,0.00029673,31]
[392569899,1761681036061,-151.0,0.00029673,31]
[392569902,1761681036071,-151.0,0.00029673,31]
[392569905,1761681036080,-190.629769,0.00029673,31]
[392569909,1761681036089,-154.078422,0.00029673,31]
[392569912,1761681036098,-151.0,0.00029673,31]
[392569929,1761681036234,-151.0,0.00029673,31]
[392569931,1761681036245,-151.0,0.00029673,31]
[392569933,1761681036255,-151.0,0.00029673,30]
[392569935,1761681036265,-151.0,0.00029673,31]
[392569937,1761681036274,-151.0,0.00029673,31]
[392569939,1761681036283,-151.0,0.00029673,31]
[392569941,1761681036293,-151.0,0.00029673,31]
[392569943,1761681036302,-477.868537,0.00029673,31]
[392569945,1761681036312,-151.0,0.00029673,31]
[392569947,1761681036321,-477.868537,0.00029673,31]
[392569949,1761681036330,-151.0,0.00029673,31]
[392569951,1761681036339,-477.868537,0.00029673,31]
[392569953,1761681036348,-192.243263,0.00029673,31]
[392569955,1761681036357,-477.868537,0.00029673,31]
[392569957,1761681036367,-151.0,0.00029673,31]
[392569959,1761681036375,-151.0,0.00029673,31]
[392569961,1761681036384,-180.121134,0.00029673,31]
[392569963,1761681036394,-5108.418559,0.00029673,31]
[392569965,1761681036403,-5108.418559,0.00029673,31]
[392569967,1761681036411,-5108.418559,0.00029673,31]
[392569969,1761681036421,-5108.418559,0.00029673,31]
[392569971,1761681036430,-151.0,0.00029673,31]
[392569973,1761681036439,-151.0,0.00029673,31]
[392569975,1761681036449,-151.0,0.00029673,31]
[392569977,1761681036458,-151.0,0.00029673,31]
[392569979,1761681036467,-241.94133,0.00029673,31]
[392569981,1761681036478,-151.0,0.00029673,31]
[392569983,1761681036487,-151.0,0.00029673,31]
[392569985,1761681036497,-151.0,0.00029673,31]
[392569987,1761681036506,-151.0,0.00029673,31]
[392569989,1761681036516,-151.0,0.00029673,31]
[392569991,1761681036526,-151.0,0.00029673,31]
[392569993,1761681036535,-151.0,0.00029673,31]
[392569995,1761681036546,-151.0,0.00029673,31]
[392569996,1761681036555,-151.0,0.00029673,31]
[392569998,1761681036565,-161.30106,0.00029673,31]
[392570000,1761681036574,-151.0,0.00029673,31]
[392570002,1761681036583,-151.0,0.00029673,31]
[392570004,1761681036592,-301.374181,0.00029673,31]
[392570006,1761681036603,-301.374181,0.00029673,31]
[392570008,1761681036612,-301.374181,0.00029673,31]
[392570010,1761681036621,-301.374181,0.00029673,31]
[392570012,1761681036630,-151.0,0.00029673,31]
[392570014,1761681036639,-166.314309,0.00029673,31]
[392570016,1761681036648,-301.374181,0.00029673,31]
[392570018,1761681036657,-301.374181,0.00029673,31]
[392570020,1761681036666,-301.374181,0.00029673,31]
[392570022,1761681036676,-301.374181,0.00029673,31]
[392570024,1761681036685,-151.0,0.00029673,31]
[392570026,1761681036695,-200.157603,0.00029673,31]
[392570028,1761681036704,-151.0,0.00029673,31]
[392570030,1761681036713,-151.0,0.00029673,31]
[392570032,1761681036725,-151.0,0.00029673,31]
[392570034,1761681036736,-151.0,0.00029673,31]
[392570036,1761681036745,-151.0,0.00029673,31]
[392570038,1761681036754,-151.0,0.00029673,31]
[392570040,1761681036764,-151.0,0.00029673,31]
[392570042,1761681036773,-151.0,0.00029673,31]
[392570044,1761681036782,-892.251153,0.00029673,30]
[392570046,1761681036792,-892.251153,0.00029673,30]
[392570048,1761681036801,-892.251153,0.00029673,30]
[392570050,1761681036811,-892.251153,0.00029673,30]
[392570052,1761681036820,-151.0,0.00029673,31]
[392570054,1761681036829,-151.0,0.00029673,31]
[392570056,1761681036839,-892.251153,0.00029673,30]
[392570058,1761681036849,-892.251153,0.00029673,30]
[392570060,1761681036858,-892.251153,0.00029673,30]
[392570062,1761681036867,-892.251153,0.00029673,30]
[392570064,1761681036876,-151.0,0.00029673,31]
[392570066,1761681036886,-151.0,0.00029673,31]
[392570068,1761681036895,-151.0,0.00029673,31]
[392570070,1761681036910,-185.347716,0.00029673,31]
[392570072,1761681036919,-1291.967424,0.00029673,31]
[392570074,1761681036931,-1291.967424,0.00029673,31]
[392570076,1761681036940,-1291.967424,0.00029673,31]
[392570078,1761681036950,-1291.967424,0.00029673,31]
[392570080,1761681036959,-160.042833,0.00029673,31]
[392570082,1761681036970,-160.042833,0.00029673,31]
[392570084,1761681036980,-1291.967424,0.00029673,31]
[392570085,1761681036990,-243.346779,0.00029673,31]
[392570086,1761681036999,-1291.967424,0.00029673,31]
[392570087,1761681037010,-243.346779,0.00029673,31]
[392570088,1761681037020,-160.042833,0.00029673,31]
[392570089,1761681037030,-160.042833,0.00029673,31]
[392570090,1761681037039,-1291.967424,0.00029673,31]
[392570091,1761681037048,-243.346779,0.00029673,31]
[392570092,1761681037058,-1291.967416,0.00029673,31]
[392570093,1761681037067,-243.346779,0.00029673,31]
[392570094,1761681037076,-295.839477,0.00029673,31]
[392570095,1761681037086,-160.042833,0.00029673,31]
[392570096,1761681037095,-160.042833,0.00029673,31]
[392570097,1761681037108,-243.346779,0.00029673,31]
[392570098,1761681037118,-243.346779,0.00029673,31]
[392570099,1761681037128,-160.042833,0.00029673,31]
[392570100,1761681037138,-160.042825,0.00029673,31]
[392570101,1761681037148,-151.0,0.00029673,31]
[392570102,1761681037158,-151.0,0.00029673,31]
[392570103,1761681037168,-164.615945,0.00029673,31]
[392570104,1761681037179,-243.346779,0.00029673,31]
[392570105,1761681037191,-243.346775,0.00029673,31]
[392570106,1761681037203,-151.0,0.00029673,31]
[392570107,1761681037212,-151.0,0.00029673,31]
[392570108,1761681037227,-151.0,0.00029673,31]
[392570109,1761681037236,-231.725658,0.00029673,31]
[392570110,1761681037246,-231.725658,0.00029673,31]
[392570111,1761681037256,-231.725658,0.00029673,31]
[392570112,1761681037266,-150.0,0.00029673,2]
[392570113,1761681037275,-231.725666,0.00029673,31]
[392570115,1761681037285,-151.0,0.00029673,31]
[392570117,1761681037294,-150.0,0.00029673,2]
[392570119,1761681037304,-151.0,0.00029673,31]
[392570122,1761681037314,-151.0,0.00029673,31]
[392570124,1761681037327,-151.0,0.00029673,31]
[392570126,1761681037336,-151.0,0.00029673,31]
[392570128,1761681037346,-151.0,0.00029673,31]
[392570130,1761681037357,-154.829884,0.00029673,31]
[392570132,1761681037366,-151.0,0.00029673,31]
[392570134,1761681037375,-150.0,0.00029673,2]
[392570136,1761681037385,-151.0,0.00029673,14]
[392570138,1761681037395,-151.0,0.00029673,14]
[392570140,1761681037404,-151.0,0.00029673,14]
[392570142,1761681037414,-151.0,0.00029673,31]
[392570144,1761681037424,-151.0,0.00029673,31]
[392570146,1761681037434,-241.378243,0.00029673,31]
[392570148,1761681037443,-241.378243,0.00029673,31]
[392570150,1761681037453,-241.378243,0.00029673,31]
[392570152,1761681037463,-241.378249,0.00029673,31]
[392570154,1761681037473,-206.007068,0.00029673,31]
[392570156,1761681037483,-796.229553,0.00029673,31]
[392570158,1761681037493,-796.229553,0.00029673,31]
[392570161,1761681037505,-796.229553,0.00029673,31]
[392570163,1761681037519,-1425.0,0.00029675,2]
[392570165,1761681037528,-151.0,0.00029675,15]
[392570167,1761681037538,-151.0,0.00029675,15]
[392570169,1761681037547,-151.0,0.00029675,31]
[392570171,1761681037558,-151.0,0.00029675,31]
[392570173,1761681037567,-151.0,0.00029675,31]
[392570175,1761681037577,-151.0,0.00029675,31]
[392570177,1761681037587,-151.0,0.00029675,31]
[392570179,1761681037596,-151.0,0.00029675,31]
[392570181,1761681037605,-151.0,0.00029675,31]
[392570183,1761681037615,-155.042795,0.00029675,30]
[392570185,1761681037625,-1425.0,0.00029677,2]
[392570187,1761681037635,-8103.31390355,0.00029684,2]
[392570189,1761681037646,-227.728748,0.00029684,31]
[392570191,1761681037657,-151.0,0.00029684,31]
[392570193,1761681037667,-151.0,0.00029684,31]
[392570195,1761681037677,-892.251153,0.00029684,30]
[392570197,1761681037687,-892.251153,0.00029684,30]
[392570199,1761681037697,-892.251153,0.00029684,30]
[392570202,1761681037711,-892.251156,0.00029684,30]
[392570204,1761681037723,-164.425114,0.00029684,31]
[392570206,1761681037732,-5135.9932738,0.00029687,2]
[392570208,1761681037742,-1425.0,0.00029687,2]
[392570210,1761681037752,-151.0,0.00029687,31]
[392570212,1761681037761,-151.0,0.00029687,31]
[392570214,1761681037771,-151.0,0.00029687,31]
[392570216,1761681037780,-151.0,0.00029687,31]
[392570218,1761681037790,-477.868537,0.00029687,31]
[392570220,1761681037799,-151.0,0.00029687,31]
[392570222,1761681037809,-477.868537,0.00029687,31]
[392570224,1761681037819,-151.0,0.00029687,31]
[392570226,1761681037828,-477.868537,0.00029687,31]
[392570228,1761681037838,-477.868537,0.00029687,31]
[392570230,1761681037847,-151.0,0.00029687,31]
[392570232,1761681037857,-151.0,0.00029687,31]
[392570234,1761681037866,-5108.418559,0.00029687,31]
[392570235,1761681037875,-5108.418559,0.00029687,31]
[392570238,1761681037885,-5108.418559,0.00029687,31]
[392570240,1761681037895,-5108.418559,0.00029687,31]
[392570242,1761681037906,-151.0,0.00029687,31]
[392570244,1761681037916,-151.0,0.00029687,31]
[392570246,1761681037928,-151.0,0.00029687,31]
[392570248,1761681037938,-151.0,0.00029687,31]
[392570250,1761681037948,-151.0,0.00029687,31]
[392570252,1761681037958,-151.0,0.00029687,31]
[392570254,1761681037967,-151.0,0.00029687,31]
[392570256,1761681037976,-301.374181,0.00029687,31]
[392570258,1761681037986,-301.374181,0.00029687,31]
[392570260,1761681037995,-301.374181,0.00029687,31]
[392570262,1761681038006,-301.374177,0.00029687,31]
[392570264,1761681038015,-1425.0,0.00029705,2]
[392570266,1761681038025,-1425.0,0.00029706,2]
[392570268,1761681038034,-151.0,0.00029713,31]
[392570270,1761681038044,-151.0,0.00029713,31]
[392570272,1761681038054,-151.0,0.00029713,31]
[392570274,1761681038063,-151.0,0.00029713,31]
[392570276,1761681038072,-151.0,0.00029713,31]
[392570278,1761681038083,-151.0,0.00029713,31]
[392570280,1761681038092,-151.0,0.00029713,31]
[392570282,1761681038102,-151.0,0.00029713,31]
[392570284,1761681038111,-151.0,0.00029713,31]
[392570286,1761681038121,-151.0,0.00029713,31]
[392570288,1761681038130,-500.0,0.00029713,2]
[392570290,1761681038140,-500.0,0.00029713,2]
[392570292,1761681038150,-200.0,0.00029713,2]
[392570294,1761681038160,-500.0,0.00029713,2]
[392570296,1761681038170,-150.0,0.00029713,2]
[392570298,1761681038179,-500.0,0.00029713,2]
[392570300,1761681038190,-184.2031671,0.00029713,2]
[392570302,1761681038205,-1425.0,0.00029715,2]
[392570304,1761681038215,-332.55986702,0.00029715,2]
[392570306,1761681038230,-9098.91068688,0.00029718,2]
[392570309,1761681038243,-5135.9932738,0.00029723,2]
[392570310,1761681038253,-8103.31390355,0.00029728,2]
[392570312,1761681038263,-54593.4641213,0.0002973,2]
[392570314,1761681038274,-1593.0,0.00029734,2]
[392570317,1761681038285,-1313.0,0.00029734,2]
[392570319,1761681038296,-500.0,0.00029739,3]
[392570321,1761681038306,-500.0,0.00029739,3]
[392570323,1761681038317,-14692.6812721,0.0002974,2]
[392570325,1761681038327,-1959.5860723,0.0002974,2]
[392570327,1761681038338,-3440.7187636,0.0002974,2]
[392570329,1761681038347,-151.0,0.0002974,31]
[392570344,1761681038505,-291.607842,0.0002974,31]
[392570346,1761681038515,-151.0,0.0002974,31]
[392570348,1761681038525,-151.0,0.0002974,31]
[392570350,1761681038535,-151.0,0.0002974,31]
[392570352,1761681038544,-151.0,0.0002974,31]
[392570354,1761681038554,-151.0,0.0002974,31]
[392570356,1761681038564,-275.180821,0.0002974,31]
[392570358,1761681038574,-151.0,0.0002974,31]
[392570360,1761681038584,-151.0,0.0002974,31]
[392570362,1761681038594,-290.845209,0.0002974,31]
[392570364,1761681038604,-151.0,0.0002974,31]
[392570366,1761681038614,-191.010954,0.0002974,31]
[392570368,1761681038624,-151.0,0.0002974,31]
[392570370,1761681038634,-151.0,0.0002974,31]
[392570372,1761681038645,-912.697164,0.0002974,31]
[392570374,1761681038654,-912.697164,0.0002974,31]
[392570376,1761681038664,-912.697164,0.0002974,31]
[392570378,1761681038673,-151.0,0.0002974,31]
[392570380,1761681038683,-912.697164,0.0002974,31]
[392570382,1761681038692,-151.0,0.0002974,31]
[392570384,1761681038702,-912.697164,0.0002974,31]
[392570386,1761681038712,-912.697164,0.0002974,31]
[392570388,1761681038726,-867.5771762,0.0002974,31]
[392570418,1761681039041,-45.1199878,0.0002974,31]
[392570420,1761681039052,-912.697164,0.0002974,31]
[392570422,1761681039062,-241.898979,0.0002974,31]
[392570424,1761681039072,-165.083844,0.0002974,31]
[392570427,1761681039082,-165.083844,0.0002974,31]
[392570429,1761681039103,-165.083844,0.0002974,31]
[392570432,1761681039120,-165.083844,0.0002974,31]
[392570435,1761681039137,-290.47729,0.0002974,31]
[392570437,1761681039159,-165.083844,0.0002974,31]
[392570440,1761681039177,-165.083844,0.0002974,31]
[392570443,1761681039192,-165.083844,0.0002974,31]
[392570445,1761681039208,-165.083844,0.0002974,31]
[392570447,1761681039229,-151.0,0.0002974,31]
[392570450,1761681039247,-151.0,0.0002974,31]
[392570453,1761681039267,-151.0,0.0002974,31]
[392570456,1761681039283,-151.0,0.0002974,31]
[392570458,1761681039300,-151.0,0.0002974,31]
[392570461,1761681039316,-151.0,0.0002974,31]
[392570464,1761681039332,-151.0,0.0002974,31]
[392570466,1761681039349,-236.754885,0.0002974,31]
[392570469,1761681039363,-151.0,0.0002974,31]
[392570471,1761681039375,-151.0,0.0002974,31]
[392570474,1761681039395,-151.0,0.0002974,31]
[392570476,1761681039407,-151.0,0.0002974,31]
[392570479,1761681039420,-151.0,0.0002974,31]
[392570481,1761681039437,-151.0,0.0002974,31]
[392570484,1761681039449,-212.099183,0.0002974,31]
[392570486,1761681039465,-151.0,0.0002974,31]
[392570489,1761681039483,-151.0,0.0002974,31]
[392570491,1761681039496,-151.0,0.0002974,31]
[392570493,1761681039510,-151.0,0.0002974,31]
[392570496,1761681039523,-167.706809,0.0002974,31]
[392570498,1761681039536,-151.0,0.0002974,31]
[392570501,1761681039550,-151.0,0.0002974,31]
[392570503,1761681039566,-151.0,0.0002974,31]
[392570506,1761681039580,-151.0,0.0002974,31]
[392570508,1761681039595,-151.0,0.0002974,15]
[392570512,1761681039609,-151.0,0.0002974,15]
[392570514,1761681039623,-151.0,0.0002974,15]
[392570517,1761681039636,-151.0,0.0002974,15]
[392570519,1761681039650,-151.0,0.0002974,15]
[392570521,1761681039663,-199.636595,0.0002974,15]
[392570524,1761681039677,-151.0,0.0002974,31]
[392570526,1761681039690,-151.0,0.0002974,31]
[392570529,1761681039703,-151.0,0.0002974,31]
[392570531,1761681039717,-151.0,0.0002974,31]
[392570535,1761681039733,-151.0,0.0002974,31]
[392570536,1761681039747,-151.0,0.0002974,31]
[392570537,1761681039761,-151.0,0.0002974,31]
[392570538,1761681039774,-151.0,0.0002974,31]
[392570539,1761681039788,-151.0,0.0002974,31]
[392570542,1761681039802,-151.0,0.0002974,31]
[392570544,1761681039817,-151.0,0.0002974,31]
[392570547,1761681039831,-151.0,0.0002974,31]
[392570549,1761681039844,-218.878874,0.0002974,31]
[392570552,1761681039859,-177.154163,0.0002974,31]
[392570554,1761681039873,-151.0,0.0002974,31]
[392570556,1761681039888,-151.0,0.0002974,31]
[392570559,1761681039904,-151.0,0.0002974,31]
[392570561,1761681039919,-169.994138,0.0002974,31]
[392570564,1761681039934,-151.0,0.0002974,31]
[392570566,1761681039949,-151.0,0.0002974,31]
[392570569,1761681039963,-477.868537,0.0002974,31]
[392570571,1761681039982,-477.868537,0.0002974,31]
[392570574,1761681039996,-151.0,0.0002974,31]
[392570576,1761681040010,-151.0,0.0002974,31]
[392570578,1761681040023,-477.868537,0.0002974,31]
[392570581,1761681040036,-477.868537,0.0002974,31]
[392570583,1761681040050,-151.0,0.0002974,31]
[392570586,1761681040064,-151.0,0.0002974,31]
[392570588,1761681040078,-477.868537,0.0002974,31]
[392570591,1761681040092,-477.868537,0.0002974,31]
[392570593,1761681040105,-477.868537,0.0002974,31]
[392570595,1761681040119,-477.86854,0.0002974,31]
[392570598,1761681040132,-151.0,0.0002974,31]
[392570600,1761681040145,-151.0,0.0002974,31]
[392570603,1761681040158,-151.0,0.0002974,31]
[392570605,1761681040172,-151.0,0.0002974,31]
[392570608,1761681040188,-5108.418559,0.0002974,31]
[392570610,1761681040206,-5108.418559,0.0002974,31]
[392570613,1761681040228,-5108.418559,0.0002974,31]
[392570615,1761681040244,-5108.418559,0.0002974,31]
[392570617,1761681040256,-4196.69983437,0.0002974,31]
[392570620,1761681040271,-911.71872463,0.0002974,31]
[392570622,1761681040281,-5108.418559,0.0002974,31]
[392570624,1761681040291,-5108.418559,0.0002974,31]
[392570626,1761681040301,-5108.418554,0.0002974,31]
[392570628,1761681040311,-151.0,0.0002974,31]
[392570630,1761681040321,-151.0,0.0002974,31]
[392570632,1761681040331,-151.0,0.0002974,31]
[392570634,1761681040340,-8788.13834777,0.0002974,2]
[392570636,1761681040350,-9098.91068688,0.00029741,2]
[392570638,1761681040360,-8788.13834777,0.00029741,2]
[392570640,1761681040370,-500.0,0.00029743,3]
[392570642,1761681040382,-500.0,0.00029743,3]
[392570644,1761681040392,-500.0,0.00029743,3]
[392570646,1761681040402,-500.0,0.00029743,3]
[392570648,1761681040413,-500.0,0.00029743,3]
[392570651,1761681040423,-500.0,0.00029743,3]
[392570653,1761681040432,-1142.794,0.00029744,24]
[392570655,1761681040442,-151.0,0.00029744,31]
[392570657,1761681040452,-151.0,0.00029744,31]
[392570659,1761681040461,-151.0,0.00029744,31]
[392570694,1761681040786,-151.0,0.00029744,31]
[392570697,1761681040805,-151.0,0.00029744,31]
[392570699,1761681040816,-151.0,0.00029744,31]
[392570701,1761681040825,-1425.0,0.00029745,2]
[392570703,1761681040834,-151.0,0.00029747,7]
[392570705,1761681040844,-9098.91068688,0.0002975,2]
[392570707,1761681040853,-27296.7320606,0.0002975,2]
[392570709,1761681040862,-8379.99955957,0.0002975,2]
[392570805,1761681041767,-468.66098439,0.00029639,2]
[392570807,1761681041779,-50.07218672,0.00029639,2]
[392570809,1761681041788,-209.06620715,0.00029639,2]
[392570811,1761681041797,-280.86160583,0.0002964,31]
[392570813,1761681041808,-515.36794717,0.0002964,31]
[392570815,1761681041818,-151.0,0.0002964,31]
[392570817,1761681041827,-151.0,0.0002964,31]
[392570819,1761681041836,-151.0,0.0002964,31]
[392570821,1761681041845,-796.229553,0.0002965,31]
[392570823,1761681041855,-151.0,0.0002965,31]
[392570826,1761681041865,-151.0,0.0002965,31]
[392570828,1761681041874,-151.0,0.0002965,31]
[392570830,1761681041884,-796.229553,0.00029669,31]
[392570832,1761681041894,-151.0,0.00029669,31]
[392570834,1761681041903,-200.0,0.00029669,2]
[392570836,1761681041912,-151.0,0.00029669,31]
[392570838,1761681041921,-151.0,0.00029669,31]
[392570840,1761681041929,-796.229553,0.0002967,31]
[392570842,1761681041938,-151.0,0.0002967,31]
[392570844,1761681041947,-151.0,0.0002967,31]
[392570846,1761681041957,-151.0,0.0002967,31]
[392570848,1761681041966,-796.229554,0.00029673,31]
[392570850,1761681041980,-151.0,0.00029673,31]
[392570852,1761681041989,-151.0,0.00029673,31]
[392570854,1761681041999,-272.76761,0.00029673,31]
[392570856,1761681042009,-408.1387882,0.0002975,2]
[392570858,1761681042018,-54593.4641213,0.00029751,2]
[392570860,1761681042027,-35152.5533911,0.00029751,2]
[392570862,1761681042037,-1274.66153613,0.00029751,2]
[392570864,1761681042048,-6124.86764287,0.00029751,2]
[392570877,1761681042158,-1240.66059968,0.00029751,2]
[392570879,1761681042173,-458.7209082,0.00029751,2]
[392570881,1761681042182,-3443.0790918,0.00029752,2]
[392570884,1761681042196,-5655.83159508,0.00029752,2]
[392570886,1761681042209,-165.083844,0.00029754,31]
[392570888,1761681042218,-165.083844,0.00029754,31]
[392570890,1761681042233,-165.083844,0.00029754,31]
[392570892,1761681042242,-165.083844,0.00029754,31]
[392570894,1761681042252,-151.0,0.00029754,31]
[392570896,1761681042260,-151.0,0.00029754,31]
[392570898,1761681042270,-1425.0,0.00029757,2]
[392570900,1761681042279,-500.0,0.0002976,3]
[392570902,1761681042288,-242.69924436,0.0002976,3]
[392570904,1761681042297,-5135.9932738,0.0002976,2]
[392570906,1761681042306,-1179.10737189,0.0002976,2]
[392570938,1761681042578,-713.0895365,0.0002976,2]
[392570941,1761681042600,-1551.9062429,0.0002976,2]
[392570943,1761681042612,-419.71941119,0.0002976,2]
[392570950,1761681042655,-5235.0881244,0.0002976,2]
[392570952,1761681042665,-8788.13834777,0.0002976,2]
[392570954,1761681042675,-43811.49830494,0.0002976,2]
[392571001,1761681043056,-533.35155955,0.0002976,2]
[392571017,1761681043198,-19347.52494371,0.0002976,2]
[392571019,1761681043211,-49193.88288497,0.0002976,2]
[392571274,1761681045992,-715.88388234,0.0002976,2]
[392571945,1761681080300,397.0,0.000315,120]
[392571969,1761681119913,232.14,0.00013699,2]
[392571974,1761681142285,347.24077819,0.000315,120]
[392572051,1761681641387,1398.57148928,0.00031507,120]
[392572060,1761681794316,1805.84962015,0.00031506,120]
[392572069,1761682162545,689.0,0.000315,120]
[392572070,1761682205867,152.34,0.00013915,2]
[392572071,1761682206541,152.34,0.00014785,2]
[392572072,1761682209118,-152.34,0.00015655,2]
[392572073,1761682209144,-152.34,0.00016524,2]
[392572074,1761682209169,-63.3424002,0.00017394,2]
[392572075,1761682231559,343.56,0.00026869,120]
[392572076,1761682231791,343.56,0.00030227,120]
[392572090,1761682232021,-88.9975998,0.00017394,2]
[392572091,1761682232031,-152.34,0.00018264,2]
[392572092,1761682232040,-152.34,0.00019133,2]
[392572093,1761682232050,-152.34,0.00020003,2]
[392572094,1761682232059,-150.0,0.00020187,2]
[392572095,1761682232074,-232.14,0.00020187,2]
[392572096,1761682232084,-152.34,0.00020873,2]
[392572097,1761682232094,-152.34,0.00021742,2]
[392572098,1761682232103,-152.34,0.00022612,2]
[392572099,1761682232113,-152.34,0.00023482,2]
[392572100,1761682232122,-151.0,0.00024201,2]
[392572101,1761682232132,-152.34,0.00024352,2]
[392572102,1761682232141,-152.34,0.00025221,2]
[392572103,1761682232150,-162.94,0.00026016,2]
[392572104,1761682232160,-152.34,0.00026091,2]
[392572105,1761682232169,-9.68602271,0.000264,2]
[392572106,1761682232181,-2571.45434343,0.000264,2]
[392572107,1761682232191,-4784.0,0.000266,5]
[392572108,1761682232200,-232.14,0.00026676,2]
[392572109,1761682232210,-404.78632694,0.00026801,2]
[392572110,1761682232219,-300.0,0.000269,2]
[392572111,1761682232228,-300.0,0.000269,2]
[392572112,1761682232238,-300.0,0.000269,2]
[392572113,1761682232248,-1200.0,0.000269,2]
[392572114,1761682232258,-150.0,0.00026901,2]
[392572115,1761682232267,-150.0,0.00026901,2]
[392572116,1761682232276,-150.0,0.00026901,2]
[392572117,1761682232286,-150.0,0.00026901,2]
[392572119,1761682232295,-150.0,0.00026901,2]
[392572121,1761682232304,-152.10631874,0.00026901,2]
[392572123,1761682232314,-150.00000001,0.00026901,2]
[392572125,1761682232325,-150.0,0.00026901,2]
[392572127,1761682232335,-155.16858205,0.00026901,2]
[392572129,1761682232344,-166.66,0.00026919,30]
[392572131,1761682232353,-152.34,0.00026961,2]
[392572133,1761682232363,-168.0,0.00027604,2]
[392572135,1761682232372,-168.0,0.00027695,2]
[392572137,1761682232382,-152.34,0.0002783,2]
[392572139,1761682232391,-404.78632694,0.00027916,2]
[392572141,1761682232401,-2100.0,0.00027982,7]
[392572143,1761682232412,-700.0,0.00027982,7]
[392572145,1761682232422,-160.0,0.00028122,2]
[392572147,1761682232432,-168.0,0.00028163,2]
[392572149,1761682232442,-500.0,0.00028246,2]
[392572151,1761682232451,-500.0,0.00028246,2]
[392572153,1761682232461,-500.0,0.00028246,2]
[392572155,1761682232470,-4315.36,0.00028247,2]
[392572157,1761682232480,-150.0,0.00028278,2]
[392572159,1761682232490,-168.0,0.00028382,2]
[392572161,1761682232500,-168.0,0.00028382,2]
[392572163,1761682232509,-150.0,0.00028396,7]
[392572165,1761682232519,-2000.0,0.00028454,2]
[392572167,1761682232528,-10352.59,0.00028457,2]
[392572169,1761682232538,-1253.0,0.000285,2]
[392572171,1761682232547,-200.0,0.00028532,2]
[392572173,1761682232557,-21809.95,0.00028588,2]
[392572175,1761682232566,-558.0,0.00028616,2]
[392572177,1761682232575,-1437.354,0.00028616,2]
[392572179,1761682232584,-2100.0,0.00028804,7]
[392572181,1761682232594,-700.0,0.00028804,7]
[392572183,1761682232603,-500.0,0.000289,7]
[392572186,1761682232620,-500.0,0.000289,7]
[392572188,1761682232632,-500.0,0.000289,7]
[392572190,1761682232642,-500.0,0.000289,7]
[392572192,1761682232651,-500.0,0.000289,7]
[392572194,1761682232665,-500.0,0.000289,7]
[392572196,1761682232676,-500.0,0.000289,7]
[392572198,1761682232688,-500.0,0.000289,7]
[392572200,1761682232697,-500.0,0.000289,7]
[392572202,1761682232708,-500.0,0.000289,7]
[392572204,1761682232718,-291.96410192,0.000289,7]
[392572207,1761682232732,-208.03589808,0.000289,7]
[392572209,1761682232742,-500.0,0.000289,7]
[392572211,1761682232752,-192.54113308,0.000289,7]
[392572219,1761682232825,-500.0,0.00028246,2]
[392572220,1761682232835,-506.24944518,0.00028246,2]
[392572221,1761682232845,-500.0,0.00028246,2]